bitfinex/quotes_BTCUSD_20250303
["timestamp","ask_amount","ask_price","bid_price","bid_amount"]
[1741013263947,0.01710076,91758.0,91733.0,0.163517]
[1741013264165,0.01710076,91758.0,91692.0,1.07592465]
[1741013264166,0.00212956,91735.0,91675.0,1.07592465]
[1741013264379,0.00190812,91734.0,91663.0,1.07592465]
[1741013264550,0.01044377,91733.0,91651.0,0.16984]
[1741013264754,0.163571,91703.0,91663.0,0.218189]
[1741013264954,0.163571,91703.0,91651.0,0.0469]
[1741013264955,0.00190841,91703.0,91651.0,0.0469]
[1741013265158,0.163661,91653.0,91651.0,0.0469]
[1741013265408,0.218128,91689.0,91624.0,0.218283]
[1741013265531,0.00190937,91688.0,91637.0,0.218251]
[1741013265744,0.00190937,91688.0,91623.0,0.0781]
[1741013265965,0.3,91686.0,91621.0,0.051]
[1741013266193,0.00190945,91685.0,91622.0,0.218288]
[1741013266397,0.00190945,91685.0,91623.0,0.00039834]
[1741013266690,0.218142,91683.0,91623.0,0.00039834]
[1741013266927,0.652,91691.0,91623.0,0.00039834]
[1741013266928,0.00190943,91682.0,91623.0,0.00039834]
[1741013267132,0.0437,91737.0,91641.0,0.3]
[1741013267491,0.00190849,91734.0,91664.0,0.1]
[1741013267688,0.00391849,91735.0,91676.0,0.0483]
[1741013267829,0.00201,91735.0,91734.0,0.163516]
[1741013268232,0.01067593,91753.0,91707.0,0.327128]
[1741013268437,0.01067593,91753.0,91711.0,0.327114]
[1741013268638,0.16349,91749.0,91742.0,0.163501]
[1741013268926,0.163495,91746.0,91739.0,0.163507]
[1741013269078,0.01710007,91749.0,91712.0,0.00152602]
[1741013269277,0.01710007,91749.0,91748.0,0.163491]
[1741013269482,0.01079553,91753.0,91752.0,0.163484]
[1741013269685,0.01079553,91753.0,91751.0,0.163484]
[1741013270064,0.02789483,91753.0,91751.0,0.163484]
[1741013270263,0.02789483,91753.0,91724.0,0.0477]
[1741013270502,0.02789483,91753.0,91725.0,0.00152587]
[1741013270913,0.24587183,91753.0,91725.0,0.00152587]
[1741013271116,0.02789483,91753.0,91726.0,0.00152589]
[1741013271485,0.02789483,91753.0,91724.0,0.0477]
[1741013271699,0.02789483,91753.0,91696.0,0.16712]
[1741013271700,0.02789483,91753.0,91725.0,0.0015261]
[1741013271850,0.02977071,91753.0,91706.0,0.00152601]
[1741013272727,0.163485,91752.0,91741.0,0.163503]
[1741013272933,0.02789483,91753.0,91715.0,0.218066]
[1741013273143,0.02789483,91753.0,91716.0,0.00152599]
[1741013273344,0.02789483,91753.0,91682.0,1.07592465]
[1741013273345,0.01710001,91747.0,91682.0,1.07592465]
[1741013273490,0.00187588,91746.0,91699.0,0.0015264]
[1741013273685,0.01710001,91747.0,91746.0,0.163494]
[1741013273892,0.02806553,91753.0,91708.0,0.1664]
[1741013274099,0.0171,91752.0,91709.0,0.00152601]
[1741013274314,0.0171,91752.0,91735.0,0.163513]
[1741013274495,0.0171,91752.0,91750.0,0.163487]
[1741013274705,0.0171,91752.0,91708.0,0.1664]
[1741013274706,0.0171,91752.0,91751.0,0.163485]
[1741013275150,0.0171,91752.0,91726.0,0.21804]
[1741013275376,0.0171,91752.0,91743.0,0.163499]
[1741013275628,0.0171,91752.0,91727.0,0.00152584]
[1741013275840,0.02806553,91753.0,91721.0,1.07592465]
[1741013276077,0.02806553,91753.0,91722.0,0.30152578]
[1741013276251,0.02806553,91753.0,91752.0,0.163484]
[1741013276452,0.02806553,91753.0,91748.0,0.217986]
[1741013276719,0.02806553,91753.0,91752.0,0.163484]
[1741013277335,0.02806553,91753.0,91730.0,0.00152582]
[1741013277487,0.02806553,91753.0,91752.0,0.163484]
[1741013277698,0.00208542,91761.0,91752.0,0.163484]
[1741013277699,9.5e-07,91761.0,91760.0,0.463469]
[1741013277997,9.5e-07,91761.0,91760.0,0.163469]
[1741013278149,9.5e-07,91761.0,91760.0,0.16499436]
[1741013278393,9.5e-07,91761.0,91720.0,0.0452]
[1741013278563,9.5e-07,91761.0,91721.0,0.00152578]
[1741013278764,9.5e-07,91761.0,91760.0,0.163469]
[1741013279190,9.5e-07,91761.0,91760.0,0.16499439]
[1741013279564,9.5e-07,91761.0,91760.0,0.163469]
[1741013280324,9.5e-07,91761.0,91725.0,1.07592465]
[1741013280635,9.5e-07,91761.0,91712.0,0.08849906]
[1741013280636,9.5e-07,91761.0,91741.0,0.0015259]
[1741013280753,0.163503,91741.0,91740.0,0.0001196]
[1741013280952,0.217973,91755.0,91740.0,0.0001196]
[1741013281158,9.5e-07,91761.0,91740.0,0.0001196]
[1741013281357,9.5e-07,91761.0,91760.0,0.163469]
[1741013281561,0.163503,91741.0,91740.0,0.0001196]
[1741013282025,0.16537888,91741.0,91740.0,0.0001196]
[1741013282229,0.16537888,91741.0,91672.0,0.0488]
[1741013282230,0.1,91732.0,91672.0,0.0488]
[1741013282429,0.218035,91728.0,91670.0,0.032806]
[1741013282645,0.00187588,91727.0,91674.0,0.00152714]
[1741013282847,0.00187588,91727.0,91660.0,0.36494222]
[1741013283064,0.55337588,91730.0,91674.0,0.00152691]
[1741013283304,0.00011947,91741.0,91698.0,0.16358]
[1741013283305,0.00187588,91729.0,91698.0,0.16358]
[1741013283498,0.163562,91708.0,91674.0,0.00152691]
[1741013283700,0.3,91741.0,91674.0,0.00152691]
[1741013283942,0.00187588,91740.0,91674.0,0.00152691]
[1741013284146,0.01454085,91739.0,91674.0,0.00152691]
[1741013284375,0.06470091,91738.0,91675.0,0.0015268]
[1741013284549,0.06470091,91738.0,91694.0,0.163587]
[1741013284785,0.06470091,91738.0,91651.0,0.0015268]
[1741013284786,0.00196703,91738.0,91651.0,0.0015268]
[1741013284907,0.00196703,91738.0,91650.0,0.76679891]
[1741013284908,4e-05,91708.0,91707.0,0.163564]
[1741013285113,7e-05,91769.0,91760.0,0.163469]
[1741013285550,7e-05,91769.0,91739.0,0.0499]
[1741013285749,0.21801,91769.0,91739.0,0.0499]
[1741013285970,3e-07,91741.0,91740.0,0.38303782]
[1741013286139,3e-07,91741.0,91740.0,0.69605285]
[1741013286338,9.214e-05,91761.0,91760.0,0.463469]
[1741013286764,9.214e-05,91761.0,91708.0,1.07592465]
[1741013286968,9.214e-05,91761.0,91662.0,0.05]
[1741013286969,9.214e-05,91761.0,91759.0,0.163471]
[1741013287343,9.214e-05,91761.0,91760.0,0.00152528]
[1741013287729,9.214e-05,91761.0,91760.0,0.00152544]
[1741013288391,9.214e-05,91761.0,91760.0,0.30152544]
[1741013288591,9.214e-05,91761.0,91760.0,0.31454085]
[1741013288800,7e-05,91769.0,91768.0,0.463455]
[1741013289238,7e-05,91769.0,91768.0,0.463415]
[1741013289814,6e-07,91771.0,91770.0,0.463452]
[1741013290014,6e-07,91771.0,91770.0,1.58577665]
[1741013290483,0.0002097,91776.0,91770.0,1.58577665]
[1741013290484,4e-07,91776.0,91775.0,0.3]
[1741013290684,0.00048,91779.0,91778.0,0.163437]
[1741013290817,0.00048,91779.0,91778.0,0.4649618]
[1741013291016,0.00048,91779.0,91778.0,0.463437]
[1741013291203,0.00048,91779.0,91778.0,0.163437]
[1741013291569,0.00048,91779.0,91778.0,0.16496201]
[1741013291788,0.00048,91779.0,91771.0,0.217933]
[1741013291789,0.00048,91779.0,91770.0,0.0464]
[1741013291993,0.00048,91779.0,91777.0,0.163439]
[1741013292161,0.00048,91779.0,91758.0,0.00152543]
[1741013292367,0.00048,91779.0,91754.0,0.00152531]
[1741013292779,0.00087845,91779.0,91754.0,0.00152531]
[1741013292980,0.00087845,91779.0,91777.0,0.163438]
[1741013293180,0.00087845,91779.0,91778.0,0.00152529]
[1741013293600,0.00087845,91779.0,91778.0,0.30152529]
[1741013293802,0.00087845,91779.0,91778.0,0.3]
[1741013293962,0.00091845,91779.0,91777.0,0.163438]
[1741013294163,0.00091845,91779.0,91778.0,0.00152495]
[1741013294569,0.00091845,91779.0,91778.0,0.31606586]
[1741013294805,0.00091845,91779.0,91778.0,0.44214085]
[1741013295028,0.00201,91814.0,91778.0,0.44214085]
[1741013295029,9.6e-07,91794.0,91793.0,0.463411]
[1741013295237,0.00012043,91794.0,91793.0,1.53933565]
[1741013295676,0.00012043,91794.0,91791.0,0.217884]
[1741013295929,0.00012043,91794.0,91792.0,0.00152486]
[1741013296163,0.00012043,91794.0,91793.0,0.00152496]
[1741013296600,0.00012043,91794.0,91792.0,0.16493679]
[1741013296830,0.00012043,91794.0,91792.0,0.00152498]
[1741013297071,0.00012043,91794.0,91769.0,0.00152498]
[1741013297306,0.217881,91793.0,91769.0,0.00152498]
[1741013297542,0.00012043,91794.0,91754.0,0.00152527]
[1741013297791,0.00012043,91794.0,91733.0,1.07592465]
[1741013297792,0.00187588,91793.0,91746.0,0.00437]
[1741013298030,0.55,91792.0,91733.0,0.00152575]
[1741013298240,0.1,91789.0,91731.0,0.0080992]
[1741013298456,0.3,91786.0,91732.0,0.00152587]
[1741013298699,0.55,91792.0,91732.0,0.00152587]
[1741013298700,0.55,91792.0,91740.0,0.0003406]
[1741013298900,0.00187588,91791.0,91741.0,0.00152541]
[1741013299147,0.1,91792.0,91740.0,0.0003406]
[1741013299377,0.01709381,91779.0,91740.0,0.0003406]
[1741013299596,0.00187588,91778.0,91740.0,0.0003406]
[1741013299830,0.00187588,91778.0,91741.0,0.00152564]
[1741013300045,0.00187588,91778.0,91743.0,0.1635]
[1741013300252,0.00187588,91778.0,91741.0,0.00152567]
[1741013300492,0.00187588,91778.0,91740.0,0.0003406]
[1741013300742,0.15981592,91741.0,91740.0,0.0003406]
[1741013301222,0.326929,91763.0,91740.0,0.0003406]
[1741013301223,0.01709719,91770.0,91740.0,0.0003406]
[1741013301447,0.00187588,91769.0,91740.0,0.0003406]
[1741013301913,0.163503,91741.0,91740.0,0.00073905]
[1741013302624,0.18060567,91741.0,91740.0,0.00073905]
[1741013303091,0.01710267,91741.0,91740.0,0.00073905]
[1741013303554,4e-05,91778.0,91740.0,0.00226507]
[1741013303778,0.01709859,91772.0,91740.0,0.00073905]
[1741013304011,0.163485,91752.0,91740.0,0.00073905]
[1741013304241,0.00187588,91771.0,91740.0,0.00073905]
[1741013305096,0.163452,91770.0,91740.0,0.00073905]
[1741013305297,0.00187588,91769.0,91740.0,0.00073905]
[1741013305685,0.00191588,91778.0,91741.0,0.00152602]
[1741013305797,0.163489,91749.0,91741.0,0.163503]
[1741013306001,0.16348,91755.0,91741.0,0.218005]
[1741013306283,4e-05,91778.0,91740.0,0.00073905]
[1741013306464,4e-05,91771.0,91740.0,0.21874605]
[1741013306616,0.217953,91763.0,91740.0,0.00073905]
[1741013306819,4e-05,91771.0,91740.0,0.00073905]
[1741013307203,0.217936,91770.0,91740.0,0.00073905]
[1741013307409,0.163503,91741.0,91740.0,0.00073905]
[1741013307805,0.16537888,91741.0,91740.0,0.00073905]
[1741013308006,0.18248214,91741.0,91740.0,0.00073905]
[1741013308499,0.163575,91701.0,91700.0,0.002]
[1741013308766,0.163575,91701.0,91700.0,0.00209119]
[1741013308897,0.16545088,91701.0,91700.0,0.00209119]
[1741013309401,0.16545088,91701.0,91673.0,0.002]
[1741013309402,0.163598,91688.0,91673.0,0.002]
[1741013309603,0.00187588,91688.0,91687.0,0.00045967]
[1741013309811,0.01898534,91701.0,91687.0,0.00045967]
[1741013310032,0.01710946,91701.0,91687.0,0.00045967]
[1741013310432,0.1,91746.0,91687.0,0.00045967]
[1741013310433,0.00187588,91733.0,91687.0,0.00045967]
[1741013310596,0.01710774,91720.0,91688.0,0.00152655]
[1741013310797,0.01710774,91720.0,91718.0,0.163544]
[1741013310996,0.15852,91766.0,91687.0,0.00045967]
[1741013311250,0.0171038,91729.0,91690.0,0.36293018]
[1741013311415,0.55237588,91765.0,91690.0,0.36293018]
[1741013311416,0.1,91764.0,91691.0,0.30152618]
[1741013311593,0.1,91764.0,91687.0,0.0003402]
[1741013311594,0.1,91742.0,91687.0,0.0003402]
[1741013311793,0.01710487,91720.0,91687.0,0.0003402]
[1741013312093,0.163598,91688.0,91687.0,0.0003402]
[1741013312293,0.16547388,91688.0,91687.0,0.0003402]
[1741013312487,0.56547388,91688.0,91687.0,6.7e-07]
[1741013312718,0.163623,91674.0,91673.0,0.002]
[1741013312908,0.16549888,91674.0,91673.0,0.002]
[1741013313706,0.18966924,91674.0,91673.0,0.002]
[1741013313954,0.31474054,91674.0,91673.0,0.002]
[1741013314170,0.163662,91652.0,91651.0,0.0004]
[1741013314643,0.18970824,91652.0,91651.0,0.0004]
[1741013314854,0.3,91667.0,91651.0,0.0004]
[1741013315054,0.163611,91681.0,91651.0,0.0004]
[1741013315206,0.01,91741.0,91652.0,0.00152732]
[1741013315207,0.00187588,91683.0,91652.0,0.00152732]
[1741013315384,0.00011933,91681.0,91676.0,0.163619]
[1741013315762,0.00011933,91681.0,91680.0,0.163612]
[1741013315892,0.00011933,91681.0,91680.0,0.21393855]
[1741013316122,0.00011933,91681.0,91680.0,0.0488]
[1741013316566,0.00011933,91681.0,91660.0,0.00152702]
[1741013316567,0.00011933,91681.0,91660.0,0.00152693]
[1741013316744,0.00011933,91681.0,91654.0,0.0488]
[1741013317299,0.00011933,91681.0,91680.0,0.163612]
[1741013317501,0.00011933,91681.0,91654.0,0.0488]
[1741013317917,0.01722912,91681.0,91654.0,0.0488]
[1741013318106,0.00187588,91680.0,91654.0,0.0488]
[1741013318306,0.00187588,91680.0,91651.0,0.0004]
[1741013318512,0.01378638,91680.0,91651.0,0.0004]
[1741013318713,0.00187588,91680.0,91625.0,0.0454]
[1741013319198,0.00011933,91681.0,91630.0,0.1]
[1741013319348,0.00011933,91681.0,91680.0,0.163612]
[1741013319560,0.00011933,91681.0,91646.0,0.3]
[1741013319775,0.00011933,91681.0,91644.0,0.3]
[1741013319986,0.00011933,91681.0,91641.0,0.15752]
[1741013320272,0.00011933,91681.0,91628.0,0.15736]
[1741013320473,0.00011933,91681.0,91629.0,0.218271]
[1741013320682,0.00190953,91680.0,91607.0,0.25728]
[1741013320909,0.00190953,91680.0,91607.0,0.15728]
[1741013321130,0.218152,91679.0,91607.0,0.584763]
[1741013321309,0.00190923,91678.0,91607.0,0.15728]
[1741013321612,0.00190933,91677.0,91625.0,0.263679]
[1741013321816,0.3,91676.0,91625.0,0.0454]
[1741013321945,0.01711567,91665.0,91625.0,0.0454]
[1741013322530,0.00011933,91681.0,91680.0,0.163612]
[1741013322760,0.00011933,91681.0,91643.0,0.0003408]
[1741013322761,0.01723229,91681.0,91643.0,0.0003408]
[1741013322970,0.00190927,91680.0,91643.0,0.0003408]
[1741013324135,0.01711442,91671.0,91643.0,0.0003408]
[1741013324875,0.01135827,91679.0,91678.0,0.163616]
[1741013325074,0.00011933,91681.0,91643.0,0.0003408]
[1741013325275,0.00202834,91681.0,91659.0,0.163649]
[1741013325427,0.00202852,91681.0,91643.0,0.0003408]
[1741013325629,0.163612,91680.0,91673.0,0.163624]
[1741013325925,0.163612,91680.0,91643.0,0.0003408]
[1741013325926,0.00011933,91681.0,91643.0,0.0003408]
[1741013327525,0.00011933,91681.0,91680.0,0.163612]
[1741013327854,0.00011933,91681.0,91643.0,0.0003408]
[1741013328063,0.00011933,91681.0,91658.0,0.218201]
[1741013328264,0.00011933,91681.0,91643.0,0.0003408]
[1741013328265,0.218154,91679.0,91666.0,0.218181]
[1741013328452,0.218154,91679.0,91664.0,0.218188]
[1741013328453,0.00011933,91681.0,91680.0,0.163612]
[1741013328885,0.00011933,91681.0,91680.0,0.463612]
[1741013328886,3.3e-07,91681.0,91680.0,0.463612]
[1741013329090,0.01135827,91716.0,91715.0,0.20955]
[1741013329239,0.00201,91735.0,91715.0,0.046]
[1741013329445,0.0021296,91735.0,91715.0,0.046]
[1741013329646,0.0021296,91735.0,91689.0,1.07592465]
[1741013329874,0.0021296,91735.0,91681.0,0.046]
[1741013329875,0.1,91733.0,91681.0,0.046]
[1741013330046,0.00190794,91734.0,91672.0,0.00810407]
[1741013330047,0.1,91719.0,91672.0,0.00810407]
[1741013330230,0.00190886,91718.0,91672.0,0.00810407]
[1741013330431,0.00190886,91718.0,91656.0,0.0474]
[1741013330432,0.01710471,91724.0,91660.0,0.436393]
[1741013330642,0.1,91722.0,91656.0,0.0474]
[1741013330846,0.00190881,91721.0,91657.0,0.01454085]
[1741013331049,0.0019085,91723.0,91662.0,0.1]
[1741013331264,0.01710471,91724.0,91723.0,0.163535]
[1741013331767,0.0021296,91735.0,91702.0,0.0791]
[1741013332263,6e-07,91735.0,91734.0,0.509916]
[1741013332455,0.00201,91761.0,91734.0,0.509916]
[1741013332456,0.00201,91761.0,91760.0,0.163469]
[1741013332812,4e-05,91778.0,91758.0,0.217963]
[1741013332813,4e-05,91778.0,91770.0,0.163452]
[1741013333041,0.00015953,91771.0,91758.0,0.217963]
[1741013333374,0.00015953,91771.0,91734.0,0.373432]
[1741013333375,0.00015953,91771.0,91735.0,0.0776]
[1741013333557,0.00015953,91771.0,91769.0,0.163452]
[1741013333748,0.00015953,91771.0,91762.0,0.217952]
[1741013333960,0.00015953,91771.0,91770.0,0.163452]
[1741013334397,0.00015953,91771.0,91726.0,0.09996]
[1741013334575,0.00015953,91771.0,91769.0,0.163453]
[1741013334764,0.00015953,91771.0,91726.0,1.07592465]
[1741013335015,0.00015953,91771.0,91708.0,0.15432]
[1741013335016,0.00015953,91771.0,91769.0,0.163452]
[1741013335349,0.00015953,91771.0,91734.0,0.0464]
[1741013336126,0.4,91761.0,91710.0,0.047]
[1741013336305,0.1,91745.0,91687.0,0.0003408]
[1741013336476,0.01454085,91754.0,91687.0,0.0003408]
[1741013336477,0.1,91737.0,91687.0,0.0003408]
[1741013336643,0.0019085,91736.0,91687.0,0.0003408]
[1741013336848,0.1,91719.0,91687.0,0.0003408]
[1741013337045,0.55240896,91718.0,91687.0,0.0003408]
[1741013337306,0.163598,91688.0,91687.0,0.0003408]
[1741013337474,0.5505,91718.0,91687.0,0.0003408]
[1741013337690,0.163598,91688.0,91687.0,0.0003408]
[1741013338074,0.163598,91688.0,91687.0,0.0004604]
[1741013338075,0.18261751,91688.0,91687.0,0.0004604]
[1741013338274,0.01901951,91688.0,91647.0,0.0970668]
[1741013338499,0.163623,91674.0,91647.0,0.0970668]
[1741013338699,0.16553253,91674.0,91647.0,0.0970668]
[1741013339102,0.16553253,91674.0,91673.0,0.00239834]
[1741013339754,0.16553253,91674.0,91647.0,0.0970668]
[1741013339755,0.163669,91648.0,91647.0,0.0970668]
[1741013340090,0.218188,91664.0,91647.0,0.0970668]
[1741013340282,0.163669,91649.0,91647.0,0.0970668]
[1741013340518,0.16557862,91649.0,91647.0,0.0970668]
[1741013340867,0.16557862,91649.0,91647.0,0.0807897]
[1741013341094,0.3,91648.0,91647.0,0.0807897]
[1741013341299,0.5505,91658.0,91647.0,0.0807897]
[1741013341508,0.548,91658.0,91647.0,0.0807897]
[1741013341714,0.0171187,91648.0,91647.0,0.2444607]
[1741013341923,0.00039826,91674.0,91647.0,0.0807897]
[1741013342130,0.0171142,91667.0,91647.0,0.0807897]
[1741013342337,0.0171142,91667.0,91643.0,0.0003408]
[1741013342338,0.55390961,91666.0,91643.0,0.0003408]
[1741013342513,0.00190959,91665.0,91643.0,0.0003408]
[1741013342768,0.0171142,91667.0,91643.0,0.0003408]
[1741013342970,0.00039826,91674.0,91673.0,0.163625]
[1741013343786,0.00039826,91674.0,91648.0,0.017113]
[1741013344199,0.00039826,91674.0,91643.0,0.0003408]
[1741013344200,0.163675,91645.0,91643.0,0.0003408]
[1741013344384,0.00190994,91644.0,91643.0,0.0003408]
[1741013344613,0.30190994,91644.0,91643.0,0.0003408]
[1741013344816,0.218227,91648.0,91621.0,0.002]
[1741013344817,0.163712,91624.0,91621.0,0.002]
[1741013345017,0.46562258,91624.0,91621.0,0.002]
[1741013345219,0.46562258,91624.0,91621.0,6e-07]
[1741013345220,0.163716,91622.0,91621.0,6e-07]
[1741013345428,0.463734,91612.0,91595.0,0.0023406]
[1741013345637,0.163762,91596.0,91595.0,0.0023406]
[1741013345846,0.463762,91596.0,91595.0,0.0023406]
[1741013346057,0.51503373,91596.0,91595.0,0.0023406]
[1741013346261,0.19086337,91596.0,91595.0,0.0023406]
[1741013346469,0.216945,91596.0,91595.0,0.0023406]
[1741013346673,0.19277464,91596.0,91595.0,0.0023406]
[1741013346885,0.16567327,91596.0,91595.0,0.0023406]
[1741013347087,0.00191127,91596.0,91595.0,0.0023406]
[1741013347260,0.00039753,91596.0,91595.0,0.0023406]
[1741013347722,0.00039753,91596.0,91595.0,0.0856406]
[1741013348108,0.00039753,91596.0,91595.0,0.0023406]
[1741013349158,0.252,91673.0,91595.0,0.0023406]
[1741013349311,0.09244397,91654.0,91595.0,0.0023406]
[1741013349511,0.218252,91637.0,91595.0,0.00245993]
[1741013349716,0.01712042,91638.0,91595.0,0.00245993]
[1741013349957,0.01712042,91638.0,91637.0,0.163689]
[1741013350162,0.09244397,91654.0,91653.0,0.16366]
[1741013350321,0.04244397,91654.0,91653.0,0.46366]
[1741013350522,0.01711858,91683.0,91653.0,0.61566]
[1741013350719,0.01135827,91698.0,91653.0,0.61566]
[1741013350720,0.00201,91709.0,91680.0,0.163612]
[1741013350950,0.0171101,91691.0,91654.0,0.017119]
[1741013351149,0.00190924,91690.0,91631.0,0.0496]
[1741013351418,0.0171101,91691.0,91679.0,0.163613]
[1741013351622,0.00201,91709.0,91679.0,0.163613]
[1741013352045,0.00201,91709.0,91680.0,0.081]
[1741013352495,0.00190842,91708.0,91680.0,0.081]
[1741013352678,0.00201,91709.0,91680.0,0.081]
[1741013353001,0.00201,91709.0,91672.0,0.218167]
[1741013353002,0.0019084,91708.0,91666.0,0.163637]
[1741013353203,0.0019084,91708.0,91625.0,0.09996]
[1741013353204,0.3,91697.0,91627.0,0.0794]
[1741013353335,0.3,91697.0,91623.0,0.0455]
[1741013353336,0.163658,91654.0,91623.0,0.0455]
[1741013353582,0.1655677,91654.0,91608.0,0.16374]
[1741013353840,0.52576557,91654.0,91595.0,0.0478406]
[1741013354112,0.3,91655.0,91595.0,0.0023406]
[1741013354349,0.15351009,91654.0,91595.0,0.0023406]
[1741013354585,0.01712219,91641.0,91595.0,0.0023406]
[1741013354815,0.00191013,91640.0,91595.0,0.0023406]
[1741013355756,0.00191013,91640.0,91596.0,0.163762]
[1741013356002,0.00191013,91640.0,91595.0,0.0023406]
[1741013356277,0.163761,91597.0,91595.0,0.0023406]
[1741013356505,0.55491127,91596.0,91595.0,0.0023406]
[1741013356734,0.553,91596.0,91595.0,0.0023406]
[1741013356994,0.0486,91650.0,91595.0,0.0023406]
[1741013357230,0.163761,91597.0,91595.0,0.0023406]
[1741013357469,0.3,91642.0,91595.0,0.0023406]
[1741013357783,0.163761,91597.0,91595.0,0.0033406]
[1741013357994,0.00191091,91596.0,91595.0,0.0023406]
[1741013358222,0.218293,91620.0,91595.0,0.0023406]
[1741013358482,0.00191061,91619.0,91595.0,0.0023406]
[1741013358722,0.55,91624.0,91595.0,0.00246024]
[1741013358988,0.01712371,91616.0,91595.0,0.00246024]
[1741013359436,0.01712371,91616.0,91595.0,0.00446024]
[1741013359661,0.1,91672.0,91597.0,0.01454085]
[1741013359910,0.0171215,91635.0,91596.0,0.383]
[1741013360122,0.0171215,91635.0,91596.0,0.083]
[1741013360325,0.00190959,91634.0,91596.0,0.083]
[1741013360524,0.00191009,91633.0,91597.0,0.218347]
[1741013360772,0.00191018,91651.0,91596.0,0.083]
[1741013361016,0.4,91649.0,91595.0,0.00246024]
[1741013361221,0.3019106,91648.0,91595.0,0.00246024]
[1741013361437,0.01712287,91625.0,91595.0,0.00246024]
[1741013361859,0.218285,91623.0,91595.0,0.00246024]
[1741013362064,0.01712287,91625.0,91595.0,0.00246024]
[1741013362265,0.00191016,91641.0,91595.0,0.00246024]
[1741013362468,0.01712279,91617.0,91595.0,0.00246024]
[1741013362691,0.163762,91596.0,91595.0,0.00246024]
[1741013362902,0.1656728,91596.0,91595.0,0.00246024]
[1741013363435,0.553,91606.0,91595.0,0.00246024]
[1741013363668,0.218328,91605.0,91595.0,0.00246024]
[1741013363868,0.01712665,91596.0,91595.0,0.00246024]
[1741013364574,0.01712665,91596.0,91595.0,0.16622424]
[1741013364777,0.01712665,91596.0,91595.0,0.00246024]
[1741013365421,0.218203,91658.0,91595.0,0.08216024]
[1741013365422,0.163704,91629.0,91595.0,0.08216024]
[1741013365634,0.0019101,91657.0,91605.0,0.0472]
[1741013365981,0.00190966,91656.0,91606.0,0.218326]
[1741013366185,0.00190966,91656.0,91605.0,0.0472]
[1741013366504,0.218273,91629.0,91605.0,0.0462]
[1741013366669,0.218272,91629.0,91605.0,0.0462]
[1741013366869,0.3,91667.0,91605.0,0.0462]
[1741013366870,0.3,91667.0,91608.0,0.21832]
[1741013367110,0.552,91668.0,91605.0,0.0462]
[1741013367111,0.003,91657.0,91605.0,0.0462]
[1741013367287,0.218209,91655.0,91605.0,0.0462]
[1741013367492,0.00190994,91654.0,91605.0,0.0462]
[1741013367925,0.001,91656.0,91605.0,0.0462]
[1741013367926,0.00191007,91655.0,91605.0,0.0462]
[1741013368313,0.00191007,91655.0,91595.0,0.00246024]
[1741013368515,0.163715,91623.0,91604.0,0.163747]
[1741013368835,0.00191042,91642.0,91595.0,0.00246024]
[1741013369240,0.00190977,91641.0,91595.0,0.00246024]
[1741013369647,0.10190977,91641.0,91595.0,0.00246024]
[1741013369850,0.163746,91605.0,91604.0,0.007]
[1741013370251,0.163746,91605.0,91595.0,0.00246024]
[1741013370252,0.163762,91596.0,91595.0,0.00246024]
[1741013370579,0.16567329,91596.0,91595.0,0.00646024]
[1741013370715,0.16567329,91596.0,91595.0,0.00246024]
[1741013370920,0.56567329,91596.0,91595.0,2.4e-07]
[1741013371160,0.56567329,91596.0,91588.0,0.0003406]
[1741013371161,0.463775,91589.0,91588.0,8.4e-07]
[1741013371369,1.017275,91589.0,91588.0,8.4e-07]
[1741013371613,1.117275,91589.0,91588.0,8.4e-07]
[1741013371903,0.1,91578.0,91540.0,0.000341]
[1741013372032,0.463816,91566.0,91540.0,0.000341]
[1741013372239,1.017316,91566.0,91540.0,0.000341]
[1741013372435,1.167476,91566.0,91540.0,0.000341]
[1741013372648,0.1,91527.0,91452.0,0.01922285]
[1741013372913,0.72079566,91566.0,91452.0,0.01922285]
[1741013372914,0.163998,91464.0,91452.0,0.00812189]
[1741013373126,0.264018,91453.0,91451.0,0.0004]
[1741013373370,0.264018,91453.0,91437.0,0.002]
[1741013373371,0.1,91438.0,91437.0,0.002]
[1741013373577,0.29346059,91438.0,91437.0,0.002]
[1741013373748,0.1,91438.0,91437.0,0.09873528]
[1741013373950,0.21715912,91438.0,91437.0,0.09873528]
[1741013374156,0.23906643,91438.0,91437.0,0.09913281]
[1741013374351,0.21715912,91438.0,91437.0,0.09913281]
[1741013374555,0.11715912,91438.0,91437.0,0.09913281]
[1741013374755,0.1,91442.0,91437.0,0.09913281]
[1741013374956,0.1,91449.0,91437.0,0.09913281]
[1741013375155,0.19848,91479.0,91437.0,0.09913281]
[1741013375156,0.1,91453.0,91452.0,0.16402]
[1741013375424,0.1,91450.0,91437.0,0.09913281]
[1741013375582,0.1,91465.0,91437.0,0.09913281]
[1741013375739,0.1,91461.0,91437.0,0.09913281]
[1741013376120,0.1,91455.0,91437.0,0.09913281]
[1741013376398,0.2,91452.0,91437.0,0.09913281]
[1741013376614,0.2,91438.0,91437.0,0.09913281]
[1741013377047,0.2,91412.0,91397.0,7e-05]
[1741013377461,0.2,91401.0,91397.0,7e-05]
[1741013377664,0.5565,91419.0,91402.0,0.16411]
[1741013377665,0.1,91404.0,91402.0,0.16411]
[1741013377838,0.1,91404.0,91400.0,2.00011974]
[1741013377839,0.1,91401.0,91400.0,2.00011974]
[1741013378163,0.1,91415.0,91400.0,2.00011974]
[1741013378405,0.1,91406.0,91400.0,2.00011974]
[1741013378637,0.11716203,91401.0,91400.0,2.00011974]
[1741013379253,0.21716203,91401.0,91400.0,2.00011974]
[1741013379901,0.21816203,91401.0,91400.0,2.00011974]
[1741013380418,0.21916203,91401.0,91400.0,0.00011974]
[1741013381249,0.38327303,91401.0,91400.0,0.00011974]
[1741013381625,0.38127303,91401.0,91400.0,0.00011974]
[1741013382054,0.28227303,91401.0,91400.0,0.00011974]
[1741013382237,0.38227303,91401.0,91400.0,0.00011974]
[1741013382407,0.11816203,91401.0,91400.0,0.00011974]
[1741013382569,0.12007705,91401.0,91400.0,0.00011974]
[1741013383073,0.38418795,91401.0,91400.0,0.00011974]
[1741013383265,0.38227303,91401.0,91400.0,0.00011974]
[1741013383387,0.83291303,91401.0,91400.0,0.00029054]
[1741013383788,0.73291303,91401.0,91400.0,0.00029054]
[1741013383992,0.83291303,91401.0,91400.0,0.00029054]
[1741013384263,0.264146,91382.0,91381.0,0.00719994]
[1741013384500,0.1,91382.0,91381.0,0.00731953]